bitfinex-derivatives/quotes_SOLF0:USTF0_20250207
["timestamp","ask_amount","ask_price","bid_price","bid_amount"]
[1738943764085,35.63615104,198.0,197.8,35.63615104]
[1738943764287,35.63615104,198.0,197.81,1.6171]
[1738943764488,0.03405807,197.92,197.88,0.03633312]
[1738943764685,35.63615104,197.9,197.75,1.6345]
[1738943764886,35.63615104,197.82,197.71,1.6171]
[1738943765288,50.64615104,198.0,197.8,0.03567238]
[1738943765289,35.63615104,197.86,197.8,0.03567238]
[1738943765587,35.63615104,197.9,197.79,6.80686686]
[1738943765791,35.63615104,197.9,197.81,0.03531224]
[1738943765992,35.63615104,197.9,197.82,1.01102011]
[1738943766297,35.63615104,197.86,197.82,1.01102011]
[1738943766592,5.0523,197.84,197.82,1.01102011]
[1738943766787,35.66864502,197.86,197.81,0.03531224]
[1738943767087,35.63615104,197.82,197.78,20.46286094]
[1738943767291,35.63615104,197.82,197.77,19.01565853]
[1738943767492,35.63615104,197.78,197.77,19.01565853]
[1738943767693,35.63615104,197.82,197.74,54.14192062]
[1738943767893,35.63615104,197.86,197.74,54.14192062]
[1738943768083,0.03595733,197.8,197.76,0.03816066]
[1738943768289,40.69005104,197.78,197.76,0.03816066]
[1738943768783,35.63615104,197.78,197.74,54.14192062]
[1738943768988,35.63615104,197.78,197.67,53.96754116]
[1738943768989,5.0552,197.73,197.67,53.96754116]
[1738943769186,35.63615104,197.69,197.67,53.96754116]
[1738943769994,47.51245104,197.69,197.67,53.96754116]
[1738943770189,42.45615104,197.69,197.65,83.456694]
[1738943770387,42.45615104,197.69,197.65,17.30534545]
[1738943770996,5.057,197.66,197.54,5.0598]
[1738943771187,42.45615104,197.69,197.43,138.29370243]
[1738943771397,35.63615104,197.73,197.55,1.01240192]
[1738943771701,35.63615104,197.73,197.58,0.03550598]
[1738943771892,0.03690303,197.66,197.57,35.63615104]
[1738943772300,0.03690303,197.66,197.64,0.03184084]
[1738943772499,0.03690303,197.66,197.58,5.0588]
[1738943772698,0.03690303,197.66,197.63,0.03206512]
[1738943773098,35.63615104,197.77,197.59,1.01219697]
[1738943773400,35.63615104,197.73,197.59,1.01219697]
[1738943773596,35.63615104,197.73,197.65,5.0571]
[1738943773797,35.63615104,197.73,197.59,1.01219697]
[1738943774002,35.63615104,197.77,197.62,35.63615104]
[1738943774202,71.33440457,197.93,197.66,35.63615104]
[1738943774495,71.33440457,197.93,197.74,35.63615104]
[1738943774690,71.33440457,197.93,197.81,5.053]
[1738943774893,71.33440457,197.93,197.74,35.63615104]
[1738943775096,71.33440457,197.93,197.7,35.63615104]
[1738943775097,72.34486281,197.93,197.78,35.63615104]
[1738943775301,1.01045824,197.93,197.82,35.63615104]
[1738943775500,1.01045824,197.93,197.83,3.1155]
[1738943775799,9.424e-05,197.87,197.85,5.052]
[1738943776196,5.048,198.01,197.9,5.0505]
[1738943776398,1.01010101,198.0,197.86,35.63615104]
[1738943776600,1.01010101,198.0,197.83,3.1155]
[1738943776801,6.05840101,198.0,197.91,5.0504]
[1738943777000,6.05840101,198.0,197.83,3.1155]
[1738943777001,1.01010101,198.0,197.83,3.1155]
[1738943777194,1.01010101,198.0,197.86,35.63615104]
[1738943777400,0.03283612,197.93,197.9,0.03322702]
[1738943777904,5.0504,197.92,197.9,0.03322702]
[1738943778401,0.03637267,197.93,197.9,0.03322702]
[1738943779000,0.03637267,197.93,197.78,5.0536]
[1738943779201,35.63615104,197.86,197.66,38.78395104]
[1738943779400,5.0523,197.84,197.74,5.0546]
[1738943779705,35.63615104,197.86,197.66,38.78395104]
[1738943780006,5.0528,197.82,197.74,5.0548]
[1738943780207,0.03634322,197.78,197.74,0.03654298]
[1738943781704,5.09024322,197.78,197.74,0.03654298]
[1738943781901,0.03634322,197.78,197.74,0.03654298]
[1738943782704,5.0514,197.88,197.79,5.0533]
[1738943782901,35.63615104,197.9,197.74,0.03654298]
[1738943783102,35.63615104,197.9,197.74,35.63615104]
[1738943783504,35.63615104,197.9,197.7,35.63615104]
[1738943783800,35.63615104,197.9,197.67,1.5449]
[1738943783801,35.63615104,197.86,197.67,1.5449]
[1738943784006,0.03419032,197.82,197.78,0.03643239]
[1738943784402,35.63615104,197.9,197.74,35.63615104]
[1738943784702,5.683e-05,197.82,197.78,35.67236461]
[1738943784913,5.683e-05,197.82,197.79,2.9977]
[1738943785107,71.36347436,198.0,197.83,35.63615104]
[1738943785308,106.9996254,198.0,197.83,35.63615104]
[1738943785508,35.63615104,197.96,197.84,5.0521]
[1738943785808,35.63615104,197.92,197.79,2.9977]
[1738943786006,5.0516,197.87,197.8,5.053]
[1738943786302,35.63615104,197.88,197.79,1.5087]
[1738943786505,5.052,197.85,197.84,0.03862046]
[1738943787000,35.63615104,197.85,197.71,1.5087]
[1738943787205,5.0544,197.76,197.67,5.0565]
[1738943787422,35.63615104,197.78,197.76,0.0358665]
[1738943787627,5.0541,197.77,197.76,0.0358665]
[1738943787813,0.03499848,197.73,197.63,1.489]
[1738943788029,35.63615104,197.82,197.63,3.0661]
[1738943788312,42.41615104,197.86,197.66,35.6733261]
[1738943788717,5.0533,197.8,197.66,35.63615104]
[1738943788917,35.63615104,197.82,197.63,3.0661]
[1738943789117,35.63615104,197.78,197.63,3.0661]
[1738943789316,40.69015104,197.78,197.63,3.0661]
[1738943789516,35.63615104,197.78,197.63,3.0661]
[1738943789707,0.03774561,197.72,197.69,0.0341744]
[1738943790606,0.03774561,197.72,197.7,5.0558]
[1738943790812,0.03774561,197.72,197.69,0.0341744]
[1738943791718,35.63615104,197.7,197.69,0.0341744]
[1738943792008,5.0563,197.69,197.58,5.0589]
[1738943792207,0.03774561,197.72,197.55,1.6468]
[1738943792409,35.63615104,197.8,197.55,1.6468]
[1738943792410,35.63615104,197.7,197.55,1.6468]
[1738943792711,35.63615104,197.74,197.55,1.6468]
[1738943792905,35.63615104,197.8,197.61,35.63615104]
[1738943793110,35.63615104,197.8,197.72,5.0553]
[1738943793311,35.63615104,197.84,197.65,35.63615104]
[1738943793513,0.03377904,197.72,197.66,4.7319]
[1738943793706,35.63615104,197.8,197.73,0.03231821]
[1738943793913,35.63615104,197.76,197.53,35.63615104]
[1738943794207,35.63615104,197.69,197.53,35.63615104]
[1738943794612,35.63615104,197.69,197.64,5.0574]
[1738943794813,35.63615104,197.69,197.53,35.63615104]
[1738943795016,35.63615104,197.73,197.53,35.63615104]
[1738943795219,6.78,197.86,197.65,0.03733789]
[1738943795220,0.03345149,197.68,197.65,0.03733789]
[1738943795413,35.63615104,197.81,197.61,35.63615104]
[1738943795617,6.78,197.86,197.65,35.63615104]
[1738943795922,35.63615104,197.85,197.66,3.2702]
[1738943796518,0.03449431,197.77,197.74,0.03801645]
[1738943797020,35.63615104,197.76,197.57,35.63615104]
[1738943797219,35.63615104,197.76,197.74,0.03753088]
[1738943797526,35.63615104,197.76,197.57,37.20465104]
[1738943797725,35.63615104,197.72,197.57,37.20465104]
[1738943798022,35.63615104,197.76,197.57,37.20465104]
[1738943798222,35.63615104,197.72,197.57,1.5685]
[1738943798419,35.63615104,197.76,197.57,1.5685]
[1738943798621,2.168e-05,197.66,197.63,0.03790976]
[1738943798822,35.63615104,197.84,197.64,35.63615104]
[1738943799021,6.68,197.88,197.68,35.63615104]
[1738943799220,35.63615104,197.86,197.68,35.63615104]
[1738943799423,5.0528,197.82,197.74,5.0548]
[1738943799619,5.0528,197.82,197.69,1.5232]
[1738943799919,0.0323816,197.77,197.75,5.0546]
[1738943800121,0.0323816,197.77,197.74,0.03557718]
[1738943800325,35.63615104,197.82,197.69,1.5232]
[1738943800522,35.63615104,197.86,197.69,37.15935104]
[1738943800824,0.0388693,197.77,197.74,0.03859971]
[1738943801018,5.0516,197.87,197.79,5.0535]
[1738943801420,35.63615104,197.9,197.69,37.15935104]
[1738943801717,35.63615104,197.86,197.69,37.15935104]
[1738943801920,35.63615104,197.82,197.69,1.5232]
[1738943802121,0.03550872,197.79,197.76,0.0336009]
[1738943804130,5.051,197.9,197.82,5.0525]
[1738943804323,35.63615104,197.91,197.76,0.0336009]
[1738943804525,35.63615104,197.91,197.72,35.63615104]
[1738943804721,35.63615104,197.91,197.81,5.0529]
[1738943804926,35.63615104,197.91,197.72,35.63615104]
[1738943805327,0.02256688,197.83,197.8,0.034305]
[1738943805628,35.63615104,197.91,197.8,0.034305]
[1738943805823,5.0518,197.86,197.8,5.087505]
[1738943806027,0.02256688,197.83,197.8,0.034305]
[1738943806527,0.02256688,197.83,197.8,0.03549899]
[1738943807028,35.63615104,198.1,197.8,0.03549899]
[1738943807334,5.049,197.97,197.9,5.0506]
[1738943807530,6.6,198.06,197.84,1.5317]
[1738943807827,5.0494,197.96,197.84,1.5317]
[1738943808021,6.6,198.06,197.84,1.5317]
[1738943808229,6.6,198.06,197.88,0.03434389]
[1738943808426,5.0496,197.95,197.88,0.03434389]
[1738943808725,5.0496,197.95,197.9,0.03703468]
[1738943808932,5.0505,197.91,197.9,0.03703468]
[1738943809224,106.9996254,198.0,197.8,1.6178]
[1738943809225,35.63615104,197.92,197.8,1.6178]
[1738943809531,35.63615104,197.88,197.8,1.6178]
[1738943809731,40.68745104,197.88,197.8,1.6178]
[1738943810033,35.63615104,197.82,197.65,39.49668301]
[1738943810223,35.63615104,197.78,197.65,42.49268301]
[1738943810425,0.03299441,197.75,197.72,0.03235627]
[1738943811229,35.63615104,197.74,197.72,0.03235627]
[1738943811419,5.0551,197.73,197.72,0.03235627]
[1738943811622,35.63615104,197.74,197.72,0.03235627]
[1738943812128,0.03299441,197.75,197.72,0.03235627]
[1738943812829,35.63615104,197.73,197.69,20.86520855]
[1738943813032,5.0558,197.7,197.69,20.86520855]
[1738943813227,35.63615104,197.73,197.67,55.60546188]
[1738943813538,35.63615104,197.68,197.65,82.54548673]
[1738943813729,5.0569,197.66,197.65,82.54548673]
[1738943814037,35.63615104,197.7,197.57,1.5185]
[1738943814229,0.03794162,197.67,197.64,0.03772818]
[1738943814932,5.057,197.66,197.64,0.03772818]
[1738943815134,35.63615104,197.65,197.51,1.571]
[1738943815335,35.63615104,197.61,197.5,84.03868673]
[1738943815533,35.63615104,197.57,197.5,84.03868673]
[1738943816231,35.63615104,197.61,197.5,84.03868673]
[1738943816428,0.03507757,197.55,197.52,0.03730648]
[1738943820234,0.03507757,197.55,197.53,5.0602]
[1738943820424,0.03507757,197.55,197.52,0.03730648]
[1738943820623,35.63615104,197.53,197.52,0.03730648]
[1738943820835,35.63615104,197.53,197.43,1.5853]
[1738943821835,35.63615104,197.57,197.43,1.5853]
[1738943822036,0.03892673,197.5,197.47,5.0617]
[1738943822226,35.63615104,197.53,197.43,1.5853]
[1738943822532,9.38e-06,197.5,197.46,0.03523218]
[1738943822732,35.63615104,197.61,197.44,35.63615104]
[1738943822936,35.63615104,197.57,197.43,1.5853]
[1738943823431,35.63615104,197.53,197.43,1.5853]
[1738943823636,35.63615104,197.53,197.47,5.0616]
[1738943823828,35.63615104,197.61,197.46,0.03463183]
[1738943824136,35.63615104,197.61,197.43,37.22145104]
[1738943824340,5.0589,197.59,197.43,38.23446831]
[1738943824737,35.63615104,197.61,197.43,38.23446831]
[1738943824932,35.63615104,197.57,197.43,2.59831727]
[1738943825235,35.63615104,197.53,197.5,0.03641173]
[1738943825435,35.63615104,197.53,197.43,2.59831727]
[1738943825637,0.03296037,197.53,197.5,0.03787999]
[1738943825835,0.03296037,197.53,197.43,2.59831727]
[1738943826335,35.63615104,197.49,197.43,2.59831727]
[1738943826535,5.0617,197.47,197.46,0.03329361]
[1738943826935,0.03526042,197.48,197.46,0.03329361]
[1738943827333,35.63615104,197.6,197.46,0.03329361]
[1738943827741,35.63615104,197.6,197.41,1.559]
[1738943828042,35.63615104,197.56,197.41,1.559]
[1738943828231,35.63615104,197.56,197.5,5.0608]
[1738943828542,0.0345906,197.55,197.51,0.03367519]
[1738943829039,0.0345906,197.55,197.51,0.03368895]
[1738943829541,35.63615104,197.52,197.41,1.559]
[1738943829835,35.63615104,197.48,197.41,1.559]
[1738943830243,35.63615104,197.52,197.41,1.559]
[1738943830429,35.63615104,197.6,197.41,1.559]
[1738943830430,35.63615104,197.56,197.41,1.559]
[1738943830942,0.03287768,197.5,197.47,0.03432948]
[1738943831441,35.63615104,197.52,197.41,1.559]
[1738943831746,0.03235135,197.5,197.47,0.03399088]
[1738943832038,35.63615104,197.6,197.55,5.0597]
[1738943832236,35.63615104,197.64,197.46,35.63615104]
[1738943832436,35.63615104,197.64,197.47,1.5812]
[1738943833038,35.63615104,197.68,197.5,35.63615104]
[1738943833239,6.119e-05,197.57,197.54,0.03760675]
[1738943833443,35.63615104,197.68,197.54,0.03760675]
[1738943833640,35.63615104,197.68,197.54,35.63615104]
[1738943833844,100.18,197.69,197.65,5.0571]
[1738943834141,35.63615104,197.72,197.55,1.519]
[1738943834339,6.44,197.78,197.55,1.519]
[1738943834539,35.63615104,197.72,197.62,0.03516091]
[1738943834739,35.63615104,197.68,197.62,0.03516091]
[1738943834939,35.63615104,197.68,197.55,1.519]
[1738943835141,35.63615104,197.64,197.55,1.519]
[1738943835441,35.63615104,197.68,197.63,0.03775508]
[1738943835741,35.63615104,197.64,197.55,1.519]
[1738943835941,35.63615104,197.6,197.47,1.5812]
[1738943836142,35.63615104,197.6,197.58,0.0379839]
[1738943836438,71.27230208,197.6,197.23,537.28079484]
[1738943836655,35.63615104,197.49,197.32,37.23995104]
[1738943836940,35.63615104,197.58,197.41,0.03875047]
[1738943837444,35.63615104,197.58,197.41,1.6004]
[1738943837644,35.63615104,197.58,197.48,0.03294482]
[1738943837844,35.63615104,197.6,197.48,0.03294482]
[1738943838245,100.2,197.63,197.45,3.2496]
[1738943838446,100.2,197.63,197.52,0.0384047]
[1738943838950,35.63615104,197.6,197.52,0.0384047]
[1738943839442,100.2,197.63,197.52,0.0384047]
[1738943840046,35.63615104,197.57,197.52,0.0384047]
[1738943840543,35.63615104,197.61,197.52,0.0384047]
[1738943841437,100.2,197.63,197.52,0.0384047]
[1738943842043,35.63615104,197.57,197.52,0.0384047]
[1738943842943,40.69535104,197.57,197.52,0.0384047]
[1738943843146,35.63615104,197.53,197.52,0.0384047]
[1738943843537,35.63615104,197.49,197.41,1.5009]
[1738943844648,0.03508113,197.47,197.43,0.03722762]
[1738943845348,0.03508113,197.47,197.45,5.062]
[1738943845541,0.03508113,197.47,197.43,0.03722762]
[1738943847241,35.63615104,197.45,197.43,0.03722762]
[1738943847448,5.0622,197.46,197.43,0.03722762]
[1738943847649,0.03508113,197.47,197.43,0.03722762]
[1738943848452,8.113e-05,197.47,197.43,0.03722762]
[1738943848749,35.63615104,197.61,197.43,0.03722762]
[1738943848949,35.63615104,197.57,197.38,35.63615104]
[1738943849547,35.63615104,197.6,197.42,35.63615104]
[1738943849750,35.63615104,197.47,197.46,0.03491151]
[1738943850051,35.63615104,197.47,197.39,1.01322255]
[1738943850247,35.63615104,197.47,197.45,0.03446442]
[1738943850552,40.69815104,197.47,197.44,0.03359823]
[1738943850941,35.63615104,197.47,197.44,0.03359823]
[1738943851146,5.0621,197.46,197.44,0.03359823]
[1738943851346,35.63615104,197.47,197.44,0.03359823]
[1738943852047,35.63615104,197.47,197.31,6.92524663]
[1738943852243,35.63615104,197.39,197.31,6.92524663]
[1738943853150,35.63615104,197.39,197.33,0.03574782]
[1738943853452,0.03266928,197.37,197.33,0.03574782]
[1738943853646,40.69795104,197.47,197.28,1.5218]
[1738943853844,40.69795104,197.47,197.33,0.03299719]
[1738943854048,5.43e-05,197.37,197.33,0.03299719]
[1738943854250,35.63615104,197.47,197.28,1.5218]
[1738943854448,35.63615104,197.47,197.28,2.53558751]
[1738943855153,40.69795104,197.47,197.4,5.0635]
[1738943855447,35.63615104,197.47,197.3,35.63615104]
[1738943855753,35.63615104,197.47,197.42,0.03672936]
[1738943855954,35.63615104,197.51,197.35,35.63615104]
[1738943856252,35.63615104,197.55,197.43,0.03556629]
[1738943856651,35.63615104,197.55,197.4,4.6118]
[1738943856844,35.63615104,197.55,197.47,0.03520539]
[1738943857045,71.50761199,197.59,197.47,0.03520539]
[1738943857451,71.50761199,197.59,197.4,4.6118]
[1738943857653,35.63615104,197.56,197.51,0.03471214]
[1738943857957,71.50761199,197.59,197.51,0.03471214]
[1738943858350,35.63615104,197.56,197.51,0.03471214]
[1738943858552,71.50761199,197.59,197.51,0.03471214]
[1738943858856,6.32,197.61,197.51,0.03471214]
[1738943859070,6.32,197.61,197.54,5.0599]
[1738943859260,6.32,197.61,197.51,0.03471214]
[1738943859461,35.63615104,197.6,197.43,35.63615104]
[1738943859666,35.63615104,197.55,197.54,0.03353809]
[1738943859860,35.63615104,197.55,197.4,4.6118]
[1738943860855,5.0601,197.54,197.46,5.0619]
[1738943861055,0.03200767,197.49,197.46,0.03773399]
[1738943861254,35.63615104,197.47,197.46,0.03773399]
[1738943861462,35.63615104,197.47,197.39,6.92524663]
[1738943861661,35.63615104,197.47,197.45,0.03337728]
[1738943861856,40.69795104,197.47,197.38,5.064]
[1738943862063,35.63615104,197.43,197.35,6.92524663]
[1738943862259,5.0641,197.38,197.35,6.92524663]
[1738943862559,35.63615104,197.39,197.38,0.03712648]
[1738943862764,35.66945625,197.39,197.35,6.92524663]
[1738943864164,0.03330521,197.39,197.35,0.03589187]
[1738943864363,35.63615104,197.47,197.35,0.03589187]
[1738943864563,35.63615104,197.47,197.41,5.0631]
[1738943864766,35.63615104,197.47,197.3,35.63615104]
[1738943864960,35.63615104,197.47,197.3,36.64983578]
[1738943865161,35.63615104,197.43,197.3,1.01368474]
[1738943865562,0.03669311,197.38,197.36,5.0646]
[1738943865763,0.03669311,197.38,197.35,0.03297191]
[1738943866762,0.03669311,197.38,197.37,5.0643]
[1738943867159,0.03669311,197.38,197.35,0.03297191]
[1738943869366,0.03669311,197.38,197.37,5.0643]
[1738943869863,35.63615104,197.47,197.43,5.0627]
[1738943870061,100.24,197.49,197.36,3.2433]
[1738943870263,35.63615104,197.47,197.36,3.2433]
[1738943870561,40.69815104,197.47,197.4,5.0635]
[1738943870770,35.63615104,197.47,197.36,3.2433]
[1738943870967,35.63615104,197.39,197.3,1.01368474]
[1738943871360,35.63615104,197.39,197.27,1.5972]
[1738943871361,35.63615104,197.39,197.33,0.03313785]
[1738943871562,5.0645,197.37,197.33,0.03313785]
[1738943871760,35.63615104,197.39,197.33,0.03313785]
[1738943872359,35.63615104,197.35,197.33,0.03313785]
[1738943873066,35.63615104,197.35,197.16,6.92524663]
[1738943873269,35.63615104,197.26,197.18,5.069]
[1738943873470,35.63615104,197.26,197.16,6.92524663]
[1738943874064,35.63615104,197.26,197.19,0.03665166]
[1738943874065,0.03604633,197.23,197.19,0.03665166]
[1738943874480,0.03604633,197.23,197.21,5.0682]
[1738943875171,0.03604633,197.23,197.19,0.03665166]
[1738943875571,4.633e-05,197.23,197.19,0.03665166]
[1738943875871,4.633e-05,197.23,197.21,5.0684]
[1738943876579,35.63619737,197.23,197.19,0.03665166]
[1738943877280,4.633e-05,197.23,197.19,0.03665166]
[1738943877783,4.633e-05,197.23,197.22,5.0682]
[1738943879280,4.633e-05,197.23,197.22,40.70435104]
[1738943879582,4.633e-05,197.23,197.22,41.71844697]
[1738943880168,35.63615104,197.39,197.22,36.65024697]
[1738943880573,35.63615104,197.39,197.23,5.76954451]
[1738943880772,35.63615104,197.47,197.3,35.63615104]
[1738943880972,5.062,197.46,197.3,35.63615104]
[1738943881174,35.63615104,197.47,197.26,35.63615104]
[1738943881381,35.63615104,197.43,197.36,0.03599327]
[1738943881778,35.63615104,197.39,197.23,5.76954451]
[1738943881985,35.63615104,197.39,197.38,0.0337997]
[1738943882180,35.63615104,197.43,197.23,5.76954451]
[1738943882382,35.63615104,197.43,197.37,0.03859831]
[1738943882680,6.12,197.46,197.3,35.63615104]
[1738943882984,35.63615104,197.51,197.38,0.03549907]
[1738943883381,35.63615104,197.51,197.35,4.8441]
[1738943883581,35.63615104,197.51,197.43,0.03270577]
[1738943884690,35.63615104,197.47,197.43,0.03270577]
[1738943884987,35.63615104,197.47,197.35,3.1942]
[1738943885185,35.63615104,197.5,197.27,27.80160577]
[1738943885186,35.63615104,197.43,197.27,27.80160577]
[1738943885488,35.63615104,197.43,197.39,0.03647717]
[1738943885689,35.63615104,197.47,197.3,35.63615104]
[1738943885882,35.63615104,197.51,197.39,0.03705602]
[1738943886278,40.69685104,197.51,197.34,35.63615104]
[1738943886589,35.63615104,197.51,197.43,0.0372458]
[1738943886786,5.0621,197.46,197.43,0.0372458]
[1738943886990,35.63615104,197.47,197.43,0.0372458]
[1738943887281,35.63615104,197.47,197.43,0.0330722]
[1738943887588,135.95615104,197.6,197.48,5.0615]
[1738943887891,135.95615104,197.6,197.37,35.63615104]
[1738943887892,5.0594,197.56,197.37,35.63615104]
[1738943888192,35.63615104,197.55,197.52,0.03629143]
[1738943888487,35.63615104,197.55,197.52,0.03659765]
[1738943888887,5.0599,197.54,197.52,0.03659765]
[1738943889185,35.63615104,197.6,197.52,0.03659765]
[1738943889827,6.06,197.63,197.52,0.03659765]
[1738943889980,71.4851042,197.65,197.52,0.03659765]
[1738943890185,120.11752101,197.7,197.62,5.0578]
[1738943890391,11.77860316,197.69,197.53,38.65465104]
[1738943890589,115.06142101,197.7,197.64,0.03278525]
[1738943890782,35.63615104,197.7,197.64,0.03278525]
[1738943890985,40.69095104,197.74,197.53,38.65465104]
[1738943891186,35.63615104,197.74,197.65,0.03793702]
[1738943891382,35.63615104,197.7,197.65,0.03793702]
[1738943891786,35.63615104,197.66,197.53,3.0185]
[1738943892190,35.63615104,197.7,197.53,3.0185]
[1738943892387,35.63615104,197.7,197.63,5.0576]
[1738943892691,35.63615104,197.7,197.55,35.63615104]
[1738943892886,35.63615104,197.7,197.61,5.058]
[1738943893193,0.03354058,197.64,197.61,0.03291373]
[1738943893491,0.03354058,197.64,197.62,5.0579]
[1738943893986,0.03354058,197.64,197.63,5.0576]
[1738943894186,0.03354058,197.64,197.61,0.03291373]
[1738943894187,41.63615104,197.8,197.61,0.03291373]
[1738943894389,35.63615104,197.8,197.63,35.63615104]
[1738943894987,5.0538,197.79,197.63,35.63615104]
[1738943895188,35.63615104,197.84,197.67,35.63615104]
[1738943895385,35.63615104,197.88,197.71,35.63615104]
[1738943895589,5.0517,197.87,197.75,35.63615104]
[1738943895898,79.42526997,197.91,197.75,35.63615104]
[1738943896090,79.42526997,197.91,197.78,0.03886769]
[1738943896288,79.42526997,197.91,197.86,5.0516]
[1738943896498,35.63615104,197.92,197.75,35.63615104]
[1738943896693,5.0494,197.96,197.88,5.0512]
[1738943896892,79.42526997,198.02,197.87,0.03424676]
[1738943897299,5.0487,197.98,197.86,5.0518]
[1738943897502,79.42526997,198.02,197.83,35.63615104]
[1738943897696,79.42526997,198.02,197.92,0.03294016]
[1738943897894,79.42526997,198.02,197.96,5.0491]
[1738943898197,79.42526997,198.02,197.87,35.63615104]
[1738943898392,115.06142101,198.02,197.97,0.03293336]
[1738943898894,115.06142101,198.02,197.83,35.63615104]
[1738943899097,115.06142101,198.02,197.98,0.0354087]
[1738943899302,35.63615104,198.02,197.98,0.0354087]
[1738943899596,5.0497,197.95,197.84,1.6411]
[1738943899796,35.63615104,197.96,197.84,1.6411]
[1738943899998,40.68645104,197.92,197.83,5.0524]
[1738943900198,35.63615104,197.92,197.8,3.2868]
[1738943900401,6.0,197.98,197.8,3.2868]
[1738943900592,6.0,197.98,197.83,35.63615104]
[1738943900792,0.03250178,197.88,197.84,0.03410738]
[1738943900990,0.03250178,197.88,197.85,5.052]
[1738943901194,35.63615104,197.92,197.8,3.2868]
[1738943901395,0.03581848,197.88,197.84,0.03711922]
[1738943901596,1.848e-05,197.88,197.86,5.0517]
[1738943901895,1.848e-05,197.88,197.84,0.03711922]
[1738943902690,1.848e-05,197.88,197.86,5.0517]
[1738943903699,1.848e-05,197.88,197.84,0.03711922]
[1738943905499,1.848e-05,197.88,197.87,5.0515]
[1738943908408,1.848e-05,197.88,197.85,5.0518]
[1738943908604,1.848e-05,197.88,197.84,0.03711922]
[1738943909406,5.0516,197.87,197.84,0.03711922]
[1738943909704,1.848e-05,197.88,197.84,0.03711922]
[1738943909904,5.05131848,197.88,197.84,0.03711922]
[1738943910108,1.848e-05,197.88,197.84,0.00951922]
[1738943910300,35.63615104,197.86,197.72,3.2735]
[1738943910501,5.0533,197.8,197.73,5.0551]
[1738943910704,35.63615104,197.82,197.65,1.6472]
[1738943911106,5.0536,197.79,197.7,5.0556]
[1738943911307,5.0536,197.79,197.65,1.6472]
[1738943911811,5.09144847,197.79,197.76,1.04937996]
[1738943912012,35.63615104,197.78,197.76,1.04937996]
[1738943912202,35.63615104,197.78,197.76,0.0380531]
[1738943912406,35.63615104,197.78,197.64,5.0573]
[1738943912610,35.63615104,197.72,197.64,5.0573]
[1738943912811,35.63615104,197.72,197.52,3.286]
[1738943913116,35.63615104,197.72,197.53,1.5935]
[1738943913503,35.63615104,197.68,197.53,1.5935]
[1738943913709,0.03427282,197.64,197.61,0.03386189]
[1738943914003,0.03427282,197.64,197.62,5.0578]
[1738943914205,35.63615104,197.76,197.61,0.03386189]
[1738943914611,35.63615104,197.76,197.58,35.63615104]
[1738943915006,40.69065104,197.76,197.66,5.0568]
[1738943915212,35.63615104,197.76,197.66,5.0568]
[1738943915414,0.03535582,197.73,197.69,0.03259598]
[1738943916615,0.03535582,197.73,197.71,5.0556]
[1738943916804,0.03535582,197.73,197.69,0.03259598]
[1738943920706,5.09045582,197.73,197.69,0.03259598]
[1738943920912,35.63615104,197.72,197.69,0.03259598]
[1738943921614,0.03535582,197.73,197.69,0.03259598]
[1738943922015,5.0556,197.72,197.69,0.03259598]
[1738943922216,35.63615104,197.71,197.69,0.03259598]
[1738943922417,35.63615104,197.71,197.59,1.65]
[1738943922718,35.63615104,197.63,197.46,35.63615104]
[1738943922908,35.63615104,197.59,197.45,11.78824663]
[1738943923617,0.03406728,197.54,197.5,0.03692166]
[1738943924116,0.03406728,197.54,197.53,5.0602]
[1738943924321,0.03406728,197.54,197.5,0.03692166]
[1738943925816,5.0616,197.48,197.38,5.0639]
[1738943926119,35.63615104,197.51,197.33,11.89734663]
[1738943926719,5.82,197.54,197.33,4.9721]
[1738943926913,5.0615,197.48,197.39,5.0636]
[1738943927216,0.03762986,197.44,197.4,0.03250718]
[1738943929114,0.03762986,197.44,197.4,5.09600718]
[1738943929315,0.03762986,197.44,197.4,0.03250718]
[1738943931526,35.63615104,197.42,197.34,1.01347927]
[1738943931821,35.63615104,197.42,197.26,35.63615104]
[1738943931822,35.63615104,197.42,197.27,1.6355]
[1738943932413,35.63615104,197.46,197.3,35.63615104]
[1738943932612,5.063,197.43,197.34,5.065]
[1738943932822,0.03534354,197.4,197.36,0.03341787]
[1738943934323,0.03534354,197.4,197.36,5.09781787]
[1738943934520,0.03534354,197.4,197.36,0.03341787]
[1738943936022,0.03534354,197.4,197.39,5.0638]
[1738943936214,0.03534354,197.4,197.36,0.03341787]
[1738943937929,0.03534354,197.4,197.36,5.09791787]
[1738943938724,0.03534354,197.4,197.37,5.0642]
[1738943938924,0.03534354,197.4,197.36,0.03341787]
[1738943939118,0.03534354,197.4,197.37,5.0642]
[1738943939322,0.03534354,197.4,197.36,0.03341787]
[1738943939722,0.03534354,197.4,197.38,5.0638]